[Event "Swiss National League-A 2024"]
[Site "Luzern"]
[Date "2024.10.13"]
[Round "9.19"]
[White "Kaczmarczyk, Dennis"]
[Black "Baenziger, Fabian"]
[Result "0-1"]
[ECO "A45"]
[WhiteElo "2463"]
[BlackElo "2434"]
[Annotator "TA"]
[PlyCount "114"]
[EventDate "2023.10.03"]
[EventType "team-tourn"]
[EventCountry "SUI"]
[SourceTitle "playchess.com"]
[Source "ChessBase"]
[SourceQuality "1"]
[TimeControl "40/8400+30:20/3000+30:900+30"]

{[%evp 9,114,17,30,23,35,30,29,20,13,28,24,25,32,37,40,22,15,33,31,34,30,22,23,18,37,39,19,0,11,13,48,7,38,13,35,0,52,-8,0,-17,-10,-7,0,0,0,-13,0,-13,0,0,0,0,0,-60,-46,-60,-53,-62,-71,-105,-119,-130,-147,-117,-130,-132,-131,-134,-133,-134,-137,-130,-135,-133,-146,-151,-146,-630,-630,-630,-633,-633,-633,-627,-629,-629,-629,-629,-629,-629,-629,-626,-617,-530,-436,-442,-423,-600,-599,-1123,-1123,-1843,-1822,-6629,-6527,-29980,-29981]} 1. d4 {[%emt 0:40:08] Tyomkin,Dimitri} Nf6 {[%emt 0:40:26]} 2. Bg5 {[%emt 0:00:30]} d5 {[%emt 0:01:57]} 3. e3 {[%emt 0:00:12]} Ne4 {[%emt 0:03:24]} 4. Bf4 {[%emt 0:00:14]} c5 {[%emt 0:00:10]} 5. Nd2 {[%emt 0:00:23]} Nxd2 {[%emt 0:04:33]} 6. Qxd2 {[%emt 0:00:09] A45: Trompowsky Aanval.} cxd4 {[%emt 0:00:56]} 7. exd4 {[%emt 0:00:10]} Nc6 {[%emt 0:01:09] OK} 8. Nf3 {[%emt 0:06:24] OK. Wit heeft hier iets.} Bf5 {[%emt 0:09:15] OK} 9. Ne5 {[%emt 0:13:25] OK} Qb6 {[%emt 0:03:49]} 10. c3 {[%emt 0:01:35] OK} e6 {[%emt 0:03:37] OK} 11. Be2 {[%emt 0:15:18] OK} Be7 {[%emt 0:07:25]} 12. g4 {[%emt 0:07:34] OK} Be4 {[%emt 0:01:11] OK} 13. f3 {[%emt 0:00:47] OK} Bg6 $146 {[%emt 0:06:31]} ({Predecessor:} 13... Bh4+ 14. Bg3 Nxe5 15. fxe4 Bxg3+ 16. hxg3 Nc4 17. Bxc4 dxc4 18. Rh5 Qc6 {1-0 Tyomkin,D (2440)-Haimovich,T (2265) ISR-chT Israel 1998 (3)}) 14. Nxg6 {[%emt 0:12:24] OK} hxg6 {[%emt 0:00:24]} 15. O-O-O {[%emt 0:01:06] OK} O-O-O {[%emt 0:05:22]} 16. Bd3 {[%emt 0:03:24]} Bd6 {[%emt 0:04:40] OK} 17. Bxd6 {[%emt 0:12:12] OK} Rxd6 {[%emt 0:00:26]} 18. Qf4 {[%emt 0:01:27]} Qc7 {[%emt 0:01:51][%cal Oe6e5] OK} 19. h4 {[%emt 0:01:18] OK} Rd7 {[%emt 0:06:20] Onnauwkeurig} 20. Qxc7+ {[%emt 0:02:35] Onnauwkeurig} Kxc7 {[%emt 0:00:08] Onnauwkeurig} 21. f4 {[%emt 0:00:21]} Kd6 {[%emt 0:01:40] OK} 22. Rdg1 {[%emt 0:08:29] Onnauwkeurig} Rh6 {[%emt 0:09:21] Fout (0.5)} (22... Rc7 $11) {Wit zou moeten spelen} 23. f5 {[%emt 0:04:29] Fout (0.6)} (23. h5 $14) 23... gxf5 $11 {[%emt 0:00:30] Beste (Gemakkelijk)} 24. gxf5 {[%emt 0:00:14]} e5 {[%emt 0:04:24][%cal Re5d4] OK} 25. Rxg7 {[%emt 0:12:04] OK} exd4 {[%emt 0:00:12] Beste (Gemakkelijk)} 26. cxd4 {[%emt 0:00:06]} Nxd4 {[%emt 0:00:33]} 27. h5 {[%emt 0:04:31]} Ke5 {[%emt 0:02:07]} 28. Kd2 {[%emt 0:00:20]} Nf3+ {[%emt 0:03:17]} (28... Nxf5 $2 {te hebberig.} 29. Rg5 $18) 29. Ke3 {[%emt 0:01:16] OK} Kf6 {[%emt 0:00:19]} 30. Rg3 {[%emt 0:01:39]} Ne5 {[%emt 0:00:07] OK} {White should consider,} 31. Kd4 {[%emt 0:00:37] Ontwijkt Nc4. Fout (0.6)} (31. Rg8 $11) 31... Nc6+ $15 {[%emt 0:06:23] Beste} 32. Kc5 {[%emt 0:00:29]} Rd8 {[%emt 0:00:15] OK} 33. Bb5 {[%emt 0:00:20]} Ne7 $1 {[%emt 0:00:42] Sterk} 34. Ra3 {[%emt 0:00:17] Onnauwkeurig} Rc8+ {[%emt 0:08:25] OK} (34... Kxf5 35. Rf3+ (35. Rxa7 Rc8+ 36. Kb4 Rc7 $11) 35... Ke4 36. Rxf7 Rc8+ 37. Kb4 Nc6+ 38. Ka3 $16) ({Speel niet} 34... Nxf5 $6 35. Rxa7 Nd6 36. Rh3 $11) 35. Kd4 {[%emt 0:00:10]} Nxf5+ {[%emt 0:00:11] OK} 36. Kxd5 {[%emt 0:00:25][%cal Oa3f3] OK} Rhh8 {[%emt 0:00:09] Sterke dreiging met ...Rhd8+. OK} 37. Rf1 {[%emt 0:01:14] OK} Rhd8+ {[%emt 0:03:41]} 38. Ke4 {[%emt 0:00:02][%cal Rf1f5] Beste} Rc5 {[%emt 0:00:09] OK} 39. Rd3 {[%emt 0:01:02] OK} Re5+ {[%emt 0:02:09] OK} 40. Kf4 {[%emt 0:00:12] Beste} Rh8 {[%emt 0:07:07] OK} 41. Bd7 {[%emt 0:15:14] OK} Rxh5 {[%emt 0:00:54] Wit moet nu ...Rh4+ voorkomen. Beste (Gemakkelijk)} 42. Rb3 {[%emt 0:02:53]} Rd5 {[%emt 0:11:17] OK} 43. Rxb7 {[%emt 0:06:51][%mdl 8192] [#] Verliest de partij. Verliest partij (4.8)} (43. Bc8 $17) 43... Rd4+ $1 $19 {[%emt 0:01:36] Sterk} 44. Kf3 {[%emt 0:00:11][%cal Of3e2] [#]} Rh3+ $1 {[%emt 0:00:07]} 45. Kg2 {[%emt 0:06:54]} Rg3+ {[%emt 0:00:30]} 46. Kf2 {[%emt 0:00:04][%cal Od7f5]} Rf4+ {[%emt 0:00:39]} 47. Ke1 {[%emt 0:00:23]} Re3+ {[%emt 0:00:17]} 48. Kd2 {[%emt 0:00:18]} Rxf1 {[%emt 0:00:14]} 49. Bxf5 {[%emt 0:00:11]} Re7 {[%emt 0:04:47]} 50. Rxe7 {[%emt 0:03:05]} Kxe7 {[%emt 0:00:04][%mdl 4096] Eindspel. KR-KB} 51. Bd3 {[%emt 0:00:12]} Ra1 {[%emt 0:01:41]} 52. a3 {[%emt 0:05:04]} Kd6 {[%emt 0:00:34] OK} 53. Kc3 {[%emt 0:00:10] Fout (1.8)} (53. Bb5 $142) 53... Ke5 {[%emt 0:02:04] ...f5 is de sterke dreiging. OK} 54. Kb4 {[%emt 0:00:45] Onnauwkeurig} f5 {[%emt 0:00:57] Hoopt vervolgens op ...f4.} 55. a4 {[%emt 0:02:57] Onnauwkeurig} f4 {[%emt 0:02:28]} 56. Kb5 {[%emt 0:01:20]} f3 {[%emt 0:01:05] ( -> ...Kd4)} 57. a5 {[%emt 0:01:28]} Kd4 {[%emt 0:00:35] Blunder waarde: Wit=0.61/Zwart=0.04 (foutloos) .  Verliest partij:   	Wit=1      	---        Fout:        	Wit=3      	Zwart=1      Onnauwkeurig:    	Wit=5      	Zwart=2      OK:         	Wit=16     	Zwart=19     Beste:        	Wit=2      	Zwart=4      Sterk:        	---       	Zwart=2} 0-1

[Event "Swiss National League-A 2024"]
[Site "Luzern"]
[Date "2024.10.13"]
[Round "9.20"]
[White "Atlas, Valery"]
[Black "Forster, Richard"]
[Result "0-1"]
[ECO "B40"]
[WhiteElo "2394"]
[BlackElo "2464"]
[Annotator "TA"]
[PlyCount "100"]
[EventDate "2023.10.03"]
[EventType "team-tourn"]
[EventCountry "SUI"]
[SourceTitle "playchess.com"]
[Source "ChessBase"]
[SourceQuality "1"]
[TimeControl "40/8400+30:20/3000+30:900+30"]

{[%evp 14,100,14,23,24,28,39,39,74,84,86,72,86,62,95,20,297,81,181,187,537,488,485,-125,-131,-174,-178,-277,-295,-381,-367,-377,-394,-373,-367,-371,-359,-498,-234,-214,-171,-172,-175,-170,-172,-193,-191,-237,-228,-263,-274,-253,-256,-282,-293,-386,-400,-403,-401,-423,-424,-399,-415,-451,-447,-458,-458,-465,-458,-450,-450,-450,-450,-444,-446,-438,-431,-618,-597,-544,-552,-878,-881,-838,-809,-2273,-2211,-1484,-1441]} 1. e4 {[%emt 0:40:03]} c5 {[%emt 0:40:53]} 2. Nf3 {[%emt 0:00:18]} e6 {[%emt 0:02:16]} 3. d4 {[%emt 0:00:08]} cxd4 {[%emt 0:00:05]} 4. Nxd4 {[%emt 0:00:04]} Nf6 {[%emt 0:01:03]} 5. Nc3 {[%emt 0:00:10]} Bb4 {[%emt 0:00:27]} 6. e5 {[%emt 0:07:40]} Nd5 {[%emt 0:00:19]} 7. Bd2 {[%emt 0:07:16]} Nxc3 {[%emt 0:02:38]} 8. bxc3 {[%emt 0:00:15]} Bf8 {[%emt 0:00:32]} 9. Bd3 {[%emt 0:02:51]} Nc6 {[%emt 0:04:04]} 10. Qe2 {[%emt 0:02:37]} Qc7 {[%emt 0:03:37] White is slightly better.} 11. Nb5 $1 {[%emt 0:09:02]} Qb8 {[%emt 0:01:55]} 12. Bf4 {[%emt 0:03:30]} b6 {[%emt 0:03:37]} 13. Rd1 {[%emt 0:03:52]} Bb7 {[%emt 0:22:37]} 14. h4 {[%emt 0:06:00]} (14. O-O $16) 14... f5 $2 {[%emt 0:10:41][%mdl 8192]} (14... a6 $11 {and Black stays safe.} 15. Nd6+ Bxd6 16. exd6 Qd8) 15. Rh3 $2 {[%emt 0:03:21]} (15. Bxf5 $18 {and the rest is easy. Black must now prevent Qh5+.} exf5 16. Rxd7) 15... Bc5 {[%emt 0:14:29] [#]} (15... a6 $16) 16. g4 $1 $18 {[%emt 0:17:06]} fxg4 {[%emt 0:05:03]} (16... O-O {is more resistant.}) 17. Qxg4 {[%emt 0:00:58]} O-O {[%emt 0:01:28]} 18. Rg3 $2 {[%emt 0:21:48] [#]} (18. Bxh7+ $18 Kxh7 19. Rxd7) 18... Bxf2+ $1 $17 {[%emt 0:04:25][%mdl 512]} 19. Kxf2 {[%emt 0:02:55][%csl Gg3][%cal Rg4g7]} (19. Kd2 Bxg3) 19... Qxe5 {[%emt 0:00:11]} 20. Rf3 {[%emt 0:06:19]} (20. Qxg7+ $142 Qxg7 21. Rxg7+ Kxg7 22. Ke3) 20... Qc5+ $19 {[%emt 0:01:02]} 21. Kg3 {[%emt 0:05:09]} Ne5 {[%emt 0:02:25]} 22. Qh5 {[%emt 0:04:09]} Nxd3 {[%emt 0:01:39]} ({Stronger than} 22... Nxf3 23. Bxh7+ (23. Qxh7+ Kf7 24. Nd6+ Kf6 25. Qg6+ Ke7 26. Qxg7+ Kd8 27. Nxb7+ Kc8 28. Nxc5 Ne5 29. Ba6+ Kd8 30. Nxe6+ Ke8 31. Qxf8#) 23... Kh8 24. Bf5+ Kg8 25. Qh7+ (25. Rxd7 {gets mated.} Qg1+ 26. Kh3 Qh1+ 27. Kg3 Qh2+ 28. Kg4 exf5+) 25... Kf7 26. Rxd7+ Ke8 27. Qg6+ (27. Rxb7 Qg1+ 28. Kxf3 Qf1+ 29. Ke3 Qg1+ 30. Ke2 Qg2+ 31. Kd3 Qf1+ 32. Kd4 Qxf4+ 33. Be4 Qf2+ 34. Kc4 Qc5+ 35. Kb3 Qxb5+ 36. Ka3 Rc8 $11) (27. Nd6+ Qxd6 28. Rxd6 exf5 29. Qxg7 Bc8 30. Kxf3 Rb8) 27... Kxd7 28. Qxe6+ Kd8 29. Qd7#) 23. Qxc5 {[%emt 0:00:05]} Nxc5 {[%emt 0:00:06]} 24. Rff1 {[%emt 0:00:05]} Rf6 {[%emt 0:03:51]} 25. Nd6 {[%emt 0:01:25]} Bc6 {[%emt 0:02:41]} (25... Raf8 $142 26. Nxb7 Nxb7 27. Rxd7 Nc5 28. Rxg7+ Kxg7) 26. Be5 {[%emt 0:01:31]} Ne4+ {[%emt 0:05:09]} 27. Nxe4 {[%emt 0:01:31]} Rxf1 {[%emt 0:00:06]} 28. Rxf1 {[%emt 0:00:12]} Bxe4 {[%emt 0:00:04][%mdl 4096] Endgame. KRB-KRB} 29. Rf2 {[%emt 0:00:57]} Rc8 {[%emt 0:01:46]} 30. Kf4 {[%emt 0:00:21]} (30. Rf4 {was called for.} Bxc2 31. Kf2) 30... Bd5 {[%emt 0:05:18]} 31. a3 {[%emt 0:02:14]} Rc4+ {[%emt 0:01:06]} 32. Kg3 {[%emt 0:00:06]} Rc6 {[%emt 0:00:44]} 33. Rd2 {[%emt 0:01:16]} d6 {[%emt 0:02:39]} 34. Bxd6 {[%emt 0:00:41]} Rxd6 {[%emt 0:00:16] KRB-KR} 35. c4 {[%emt 0:00:04] [#]} Kf7 $1 {[%emt 0:00:23]} 36. cxd5 {[%emt 0:00:40]} (36. Rd1 Ke7) 36... Rxd5 {[%emt 0:00:10] KR-KR} 37. Rf2+ {[%emt 0:00:04]} Ke7 {[%emt 0:00:38]} 38. Rf4 {[%emt 0:00:10]} Ra5 {[%emt 0:01:06] Black is clearly winning.} 39. Rf3 {[%emt 0:00:57]} Rc5 {[%emt 0:00:29]} 40. c3 {[%emt 0:00:09]} Rc4 {[%emt 0:00:18]} 41. h5 {[%emt 0:50:51]} Ra4 {[%emt 0:50:55]} 42. Kf2 {[%emt 0:00:00]} Rxa3 {[%emt 0:00:00]} 43. Rg3 {[%emt 0:00:00]} Kf6 {[%emt 0:00:00]} 44. Rf3+ {[%emt 0:00:00]} Kg5 {[%emt 0:00:00]} 45. Rg3+ {[%emt 0:00:00]} (45. Rf7 $142) 45... Kh6 {[%emt 0:00:00]} 46. Ke2 {[%emt 0:00:00]} Ra5 {[%emt 0:00:00]} 47. Re3 {[%emt 0:00:00]} Kxh5 {[%emt 0:00:00]} 48. Rxe6 {[%emt 0:00:00]} Kg5 {[%emt 0:00:00]} 49. Kd3 {[%emt 0:00:00]} h5 {[%emt 0:00:00]} 50. Re7 {[%emt 0:00:00]} g6 {[%emt 0:00:00] Weighted Error Value: White=0.56/Black=0.31.  Loses game:     	---       	Black=1      Missed win:     	White=2     	---        Mistake:       	White=4     	Black=3      Inaccurate:     	White=4     	Black=1      OK:         	White=10    	Black=20     Best:        	White=4     	Black=3      Strong:       	White=1     	---        Brilliant:      	---       	Black=1} 0-1

[Event "Swiss National League-A 2024"]
[Site "Luzern"]
[Date "2024.10.13"]
[Round "9.21"]
[White "Hasenohr, Benedict"]
[Black "Stijve, Theo"]
[Result "0-1"]
[ECO "D35"]
[WhiteElo "2277"]
[BlackElo "2390"]
[Annotator "TA"]
[PlyCount "42"]
[EventDate "2023.10.03"]
[EventType "team-tourn"]
[EventCountry "SUI"]
[SourceTitle "playchess.com"]
[Source "ChessBase"]
[SourceQuality "1"]
[TimeControl "40/8400+30:20/3000+30:900+30"]

{[%evp 13,42,22,23,12,23,25,42,-10,27,-9,14,16,12,11,22,0,6,0,6,-78,-82,-81,-84,-170,-174,-233,-206,-222,-197,-330,-318]} 1. d4 {[%emt 0:40:03]} Nf6 {[%emt 0:40:07]} 2. c4 {[%emt 0:00:04]} e6 {[%emt 0:00:47]} 3. Nc3 {[%emt 0:00:04]} d5 {[%emt 0:00:14]} 4. cxd5 {[%emt 0:00:17]} exd5 {[%emt 0:00:07]} 5. Bg5 {[%emt 0:00:06]} c6 {[%emt 0:00:11]} 6. e3 {[%emt 0:00:06]} Be7 {[%emt 0:00:15]} 7. Bd3 {[%emt 0:00:11]} O-O {[%emt 0:00:12]} 8. h3 {[%emt 0:03:41]} Ne8 {[%emt 0:02:38][%cal Bf6e8,Be8d6,Bd6e4][%mdl 32]} 9. Bf4 {[%emt 0:01:14]} Nd6 {[%emt 0:04:24]} 10. Qf3 {[%emt 0:00:44]} (10. Qc2 $14) 10... f5 {[%emt 0:07:09]} 11. Qg3 {[%emt 0:08:36]} Be6 {[%emt 0:07:59]} 12. Nge2 {[%emt 0:06:07]} Ne4 {[%emt 0:05:25]} 13. Qh2 {[%emt 0:00:24]} Nd7 {[%emt 0:10:41]} 14. O-O {[%emt 0:04:11]} g5 $132 {[%emt 0:10:08][%mdl 2048] Black is fighting back} 15. Bc7 {[%emt 0:01:58]} Qc8 {[%emt 0:00:57] [#]} 16. h4 {[%emt 0:10:52]} f4 $1 $17 {[%emt 0:09:04]} ({Of course not} 16... gxh4 $6 17. f3 $14) 17. hxg5 {[%emt 0:00:40]} Qxc7 {[%emt 0:06:58]} 18. Nxf4 {[%emt 0:39:29]} (18. Nxe4 $17 dxe4 19. Bxe4) 18... Nxg5 $19 {[%emt 0:11:41]} 19. Qh6 {[%emt 0:14:03] [#]} (19. Bxh7+ {is a better defense.} Nxh7 20. Nxe6 Qxh2+ 21. Kxh2) 19... Bf7 $1 {[%emt 0:08:10]} 20. Bf5 {[%emt 0:04:33]} Rad8 {[%emt 0:03:12]} 21. Nh3 {[%emt 0:06:53]} (21. e4 $142) 21... Qd6 {[%emt 0:01:43] Weighted Error Value: White=0.41/Black=0.09 (flawless) .  Mistake:       	White=5     	---        Inaccurate:     	White=1     	Black=1      OK:         	White=4     	Black=4      Best:        	---       	Black=2      Strong:       	---       	Black=2} 0-1

[Event "Swiss National League-A 2024"]
[Site "Luzern"]
[Date "2024.10.13"]
[Round "9.22"]
[White "Gaehwiler, Gabriel"]
[Black "Ballmann, Martin"]
[Result "1/2-1/2"]
[ECO "E16"]
[WhiteElo "2396"]
[BlackElo "2326"]
[Annotator "TA"]
[PlyCount "61"]
[EventDate "2023.10.03"]
[EventType "team-tourn"]
[EventCountry "SUI"]
[SourceTitle "playchess.com"]
[Source "ChessBase"]
[SourceQuality "1"]
[TimeControl "40/8400+30:20/3000+30:900+30"]

{[%evp 14,61,31,30,36,30,37,34,38,29,58,36,43,42,42,28,65,63,77,43,54,54,75,44,59,0,71,0,58,58,55,56,68,42,39,37,39,37,39,39,52,46,54,38,57,26,25,25,25,25]} 1. d4 {[%emt 0:41:16]} e6 {[%emt 0:40:07]} 2. Nf3 {[%emt 0:02:10]} Nf6 {[%emt 0:00:31]} 3. g3 {[%emt 0:02:39]} b6 {[%emt 0:05:24]} 4. Bg2 {[%emt 0:00:51]} Bb7 {[%emt 0:00:22]} 5. c4 {[%emt 0:00:10]} Bb4+ {[%emt 0:00:24]} 6. Bd2 {[%emt 0:00:10]} Bxd2+ {[%emt 0:00:56]} 7. Qxd2 {[%emt 0:10:02]} d6 {[%emt 0:09:36]} 8. Nc3 {[%emt 0:08:49]} Nbd7 {[%emt 0:08:03]} 9. d5 {[%emt 0:05:50]} O-O {[%emt 0:10:39]} 10. O-O {[%emt 0:09:52]} Re8 {[%emt 0:11:27] White is slightly better.} 11. Nd4 {[%emt 0:21:11] dxe6 would now be deadly.} Qc8 {[%emt 0:04:09]} 12. Rac1 {[%emt 0:01:42]} a5 {[%emt 0:07:46]} 13. b3 {[%emt 0:01:11]} Nc5 {[%emt 0:04:51]} 14. e4 {[%emt 0:00:56]} exd5 {[%emt 0:02:58]} 15. exd5 {[%emt 0:00:06]} Qg4 {[%emt 0:10:32]} 16. Rfe1 {[%emt 0:02:42]} Rxe1+ {[%emt 0:02:00]} 17. Rxe1 {[%emt 0:00:02]} Re8 {[%emt 0:00:46] Repels Re7} 18. Ndb5 {[%emt 0:15:10]} Qd7 {[%emt 0:03:29]} 19. Nd4 {[%emt 0:01:43]} Qg4 {[%emt 0:01:32] [#] aiming for ...Rxe1+.} 20. Ndb5 {[%emt 0:00:05]} Qd7 $1 {[%emt 0:00:16]} 21. Rxe8+ {[%emt 0:02:12]} Nxe8 {[%emt 0:00:11]} 22. Nd4 {[%emt 0:01:10]} Qg4 {[%emt 0:06:29]} 23. Qe2 {[%emt 0:03:19]} Qxe2 {[%emt 0:01:13]} 24. Ndxe2 {[%emt 0:00:40]} Bc8 {[%emt 0:00:34]} 25. Nd4 {[%emt 0:02:06]} Kf8 {[%emt 0:03:26]} 26. Kf1 {[%emt 0:02:04]} g6 {[%emt 0:01:01]} 27. Ke2 {[%emt 0:03:12]} Ke7 {[%emt 0:06:33]} 28. Ke3 {[%emt 0:03:18]} Kf6 {[%emt 0:01:15]} 29. Ne4+ {[%emt 0:00:59]} Nxe4 {[%emt 0:00:15]} 30. Bxe4 {[%emt 0:00:03]} Bd7 {[%emt 0:00:28]} 31. Bd3 {[%emt 0:01:43] Weighted Error Value: White=0.18 (very precise) /Black=0.08 (flawless) .  Inaccurate:     	White=4     	Black=2      OK:         	White=5     	Black=5      Best:        	---       	Black=1      Strong:       	---       	Black=1} 1/2-1/2

[Event "Swiss National League-A 2024"]
[Site "Luzern"]
[Date "2024.10.13"]
[Round "9.23"]
[White "Schlegel, Igor"]
[Black "Loetscher, Roland"]
[Result "1-0"]
[ECO "C54"]
[WhiteElo "2242"]
[BlackElo "2379"]
[Annotator "TA"]
[PlyCount "51"]
[EventDate "2023.10.03"]
[EventType "team-tourn"]
[EventCountry "SUI"]
[SourceTitle "playchess.com"]
[Source "ChessBase"]
[SourceQuality "1"]
[TimeControl "40/8400+30:20/3000+30:900+30"]

{[%evp 15,50,11,0,27,3,20,14,0,11,7,12,13,16,21,5,8,8,12,96,91,169,173,280,266,439,435,452,460,1711,1744,1914,1846,29997,29998,29998,29999,29999]} 1. e4 {[%emt 0:40:02]} e5 {[%emt 0:40:05]} 2. Nf3 {[%emt 0:00:07]} Nc6 {[%emt 0:00:05]} 3. Bc4 {[%emt 0:00:05]} Nf6 {[%emt 0:00:06]} 4. d3 {[%emt 0:00:53]} Bc5 {[%emt 0:00:08]} 5. O-O {[%emt 0:00:18]} O-O {[%emt 0:00:09]} 6. c3 {[%emt 0:00:04]} d5 {[%emt 0:00:15]} 7. exd5 {[%emt 0:00:53]} Nxd5 {[%emt 0:00:07]} 8. Re1 {[%emt 0:01:05]} Bg4 {[%emt 0:00:49]} 9. Nbd2 {[%emt 0:03:18]} Nb6 {[%emt 0:01:07]} 10. h3 {[%emt 0:00:43]} Bh5 {[%emt 0:03:32]} 11. Bb3 {[%emt 0:03:05] The position is equal.} (11. b4 {simplifies} Be7 12. Qe2 Nxc4 13. Nxc4 f6 14. b5) 11... Qxd3 {[%emt 0:16:24]} 12. Nxe5 {[%emt 0:02:15]} Qf5 {[%emt 0:06:25]} (12... Qg3 13. Qxh5 Qxf2+ (13... Bxf2+ $2 14. Kh1 $18) 14. Kh2 Qxe1 15. Ndf3 $16 (15. Bxf7+ Rxf7 16. Qxf7+ Kh8 $17)) 13. Nef3 $1 {[%emt 0:00:31]} Rfe8 {[%emt 0:11:04]} 14. g4 {[%emt 0:07:41]} Bxg4 $1 {[%emt 0:00:44]} 15. hxg4 {[%emt 0:00:05]} Qxg4+ {[%emt 0:00:07]} 16. Kh1 {[%emt 0:00:17]} Qh3+ {[%emt 0:09:52]} ({Reject} 16... Bxf2 17. Rf1 Qh5+ 18. Nh2 Qxd1 19. Bxd1 $16) (16... Ne5 $1 $11 {keeps the balance.} 17. Nh2 (17. Rxe5 Qh3+ 18. Kg1 Qg3+ 19. Kh1 Qh3+ 20. Kg1 Qg3+ 21. Kh1 Qh3+ $11) (17. Nxe5 Qh3+ 18. Kg1 Rxe5 $11) 17... Qf5) 17. Nh2 $16 {[%emt 0:00:27] Ne4 is the strong threat.} Bxf2 {[%emt 0:00:17] [#]} (17... Ne5 $16 {was necessary.} 18. Ne4 Nd3) 18. Rf1 $1 $36 {[%emt 0:00:43][%mdl 2048] Keeping Black busy.} Qg3 {[%emt 0:02:02]} (18... Bg3 $142 19. Bxf7+ Kh8) 19. Qh5 {[%emt 0:18:07]} Nd8 {[%emt 0:21:00]} (19... Kh8 {was called for.} 20. Qxf7 (20. Bxf7 Re5 $18) (20. Qf3 Qxf3+ 21. Ndxf3 Bg3 $18) 20... Bc5) 20. Ndf3 {[%emt 0:10:06]} g6 {[%emt 0:10:59]} 21. Qh6 {[%emt 0:05:33] Black must now prevent Bf4.} Nd7 {[%emt 0:02:59]} (21... Re2 $142 22. Bf4 Be3 23. Qxh7+ (23. Bxe3 $2 Qg2#) (23. Bxg3 Bxh6 24. Bxc7 Rxb2 $18) 23... Kxh7 24. Bxg3 Rc8) 22. Bf4 {[%emt 0:01:48] A strong pair of Bishops.} Be3 {[%emt 0:02:11]} 23. Ng5 {[%emt 0:04:23]} Bxf4 {[%emt 0:01:01] [#]} 24. Bxf7+ $1 {[%emt 0:00:09][%mdl 512] White mates.} Nxf7 {[%emt 0:00:05]} 25. Qxh7+ {[%emt 0:00:05]} Kf8 {[%emt 0:00:05]} 26. Qxf7# {[%emt 0:00:05] Weighted Error Value: White=0.03 (flawless) /Black=0.77.  Mistake:       	---       	Black=5      OK:         	White=4     	Black=5      Best:        	White=3     	---        Strong:       	White=2     	Black=1} 1-0

[Event "Swiss National League-A 2024"]
[Site "Luzern"]
[Date "2024.10.13"]
[Round "9.24"]
[White "Hakimifard, Ghazal"]
[Black "Georgescu, Lena"]
[Result "1/2-1/2"]
[ECO "C65"]
[WhiteElo "2183"]
[BlackElo "2236"]
[Annotator "RC"]
[PlyCount "100"]
[EventDate "2023.10.03"]
[EventType "team-tourn"]
[EventCountry "SUI"]
[SourceTitle "playchess.com"]
[Source "ChessBase"]
[SourceQuality "1"]
[TimeControl "40/8400+30:20/3000+30:900+30"]

1. e4 {[%emt 0:40:29]} e5 {[%emt 0:40:02]} 2. Nf3 {[%emt 0:00:09]} Nc6 {[%emt 0:00:04]} 3. Bb5 {[%emt 0:07:49]} Nf6 {[%emt 0:06:02]} 4. d3 {[%emt 0:00:08]} Bc5 {[%emt 0:00:04]} 5. c3 {[%emt 0:02:21]} d5 {[%emt 0:00:15]} 6. O-O {[%emt 0:04:23]} dxe4 {[%emt 0:01:59]} 7. Nxe5 {[%emt 0:02:34]} O-O {[%emt 0:00:57]} 8. Bxc6 {[%emt 0:15:35]} bxc6 {[%emt 0:00:10]} 9. d4 {[%emt 0:00:05]} Bd6 {[%emt 0:02:09]} 10. Bg5 {[%emt 0:01:28]} c5 {[%emt 0:10:57]} 11. Nd2 {[%emt 0:00:59]} cxd4 {[%emt 0:32:46]} 12. cxd4 {[%emt 0:00:09]} Re8 {[%emt 0:09:20]} 13. Re1 {[%emt 0:14:02]} Bf5 {[%emt 0:07:57]} 14. Nec4 {[%emt 0:33:40]} Be7 {[%emt 0:04:02]} 15. Nb3 {[%emt 0:01:43]} h6 {[%emt 0:03:53]} 16. Bh4 {[%emt 0:00:45]} Bb4 {[%emt 0:05:34]} 17. Rf1 {[%emt 0:02:06]} Be6 {[%emt 0:12:16]} 18. Rc1 {[%emt 0:02:19]} Bd5 {[%emt 0:03:33]} 19. Ne5 {[%emt 0:02:39]} Bf8 {[%emt 0:01:44]} 20. Qc2 {[%emt 0:04:12]} Qd6 {[%emt 0:02:09]} 21. Bg3 {[%emt 0:01:48]} Qb6 {[%emt 0:01:39]} 22. Qxc7 {[%emt 0:03:51]} Qxc7 {[%emt 0:00:49]} 23. Rxc7 {[%emt 0:00:01]} a5 {[%emt 0:01:18]} 24. Nc4 {[%emt 0:01:46]} a4 {[%emt 0:00:45]} 25. Nbd2 {[%emt 0:01:41]} Rec8 {[%emt 0:01:18]} 26. Rc1 {[%emt 0:03:49]} Rxc7 {[%emt 0:00:35]} 27. Bxc7 {[%emt 0:00:01]} Nd7 {[%emt 0:00:36]} 28. Nd6 {[%emt 0:01:42]} Bxd6 {[%emt 0:00:42]} 29. Bxd6 {[%emt 0:00:02]} Nf6 {[%emt 0:00:48]} 30. a3 {[%emt 0:01:10]} Re8 {[%emt 0:00:30]} 31. Nf1 {[%emt 0:00:34]} Re6 {[%emt 0:00:35]} 32. Rc8+ {[%emt 0:01:16]} Kh7 {[%emt 0:00:01]} 33. Bc5 {[%emt 0:00:23]} Rc6 {[%emt 0:00:49]} 34. Rxc6 {[%emt 0:01:07]} Bxc6 {[%emt 0:00:01]} 35. Ne3 {[%emt 0:00:10]} Nd5 {[%emt 0:00:31]} 36. Nxd5 {[%emt 0:00:54]} Bxd5 {[%emt 0:00:01]} 37. Kf1 {[%emt 0:00:14]} f5 {[%emt 0:01:21]} 38. h4 {[%emt 0:00:51]} g5 {[%emt 0:00:39]} 39. Be7 {[%emt 0:00:28]} Kg6 {[%emt 0:00:34]} 40. Ke2 {[%emt 0:00:18]} f4 {[%emt 0:00:30]} 41. hxg5 {[%emt 0:23:13]} hxg5 {[%emt 0:00:09]} 42. g3 {[%emt 0:00:57]} Kf5 {[%emt 0:10:58]} 43. gxf4 {[%emt 0:03:15]} gxf4 {[%emt 0:00:13]} 44. Bf8 {[%emt 0:05:14]} Ke6 {[%emt 0:02:59]} 45. Bh6 {[%emt 0:01:01]} Bc4+ {[%emt 0:00:42]} 46. Kd2 {[%emt 0:02:40]} e3+ {[%emt 0:19:59]} 47. fxe3 {[%emt 0:00:52]} fxe3+ {[%emt 0:00:02]} 48. Bxe3 {[%emt 0:00:37]} Kd5 {[%emt 0:00:04]} 49. Kc3 {[%emt 0:03:14]} Bb3 {[%emt 0:08:19]} 50. Kb4 {[%emt 0:00:07]} Kc6 {[%emt 0:01:21]} 1/2-1/2